Cogmind - Beta 16 @@@ ROGUE MODE // 2025.10.24 @ 01:38:57 Player: Scared Dad Result: Destroyed by WY-3W7(R) with Subdweller Laser Performance ------------- Evolutions (0) 0 Regions Visited (3) 600 Robots Destroyed (23) 115 Value Destroyed (627) 627 Prototype IDs (0) 0 Alien Tech Used (0) 0 Bonus (0) 0 TOTAL SCORE: 1342 Bonus ------- None Cogmind --------- Core Integrity 0/250 Matter 225/300 Energy 200/200 System Corruption 0% Temperature Cool (6) Movement Walking (120) Location -10/Subcaves Parts ------- > --- POWER (1) -------- Subdweller Power Source > --- PROPULSION (2) --- Aluminum Leg Aluminum Leg > --- UTILITY (2) ------ Small Storage Unit Subdweller Optics > --- WEAPON (2) ------- Assault Rifle Battle Cannon > --- INVENTORY (8) ---- Aluminum Leg Aluminum Leg Scrap Suit Improved Heat Sink Assault Rifle Mining Laser Peak State ------------ > --- POWER ------------ Subdweller Power Source > --- PROPULSION ------- Aluminum Leg Aluminum Leg > --- UTILITY ---------- Small Storage Unit Subdweller Optics > --- WEAPON ----------- Assault Rifle Battle Cannon > --- INVENTORY -------- Aluminum Leg Aluminum Leg Scrap Suit Improved Heat Sink Assault Rifle Mining Laser [Rating: 11] Favorites ----------- Power Ion Engine Engine Ion Engine Power Core Light Nuclear Core Propulsion Aluminum Leg Treads Light Treads Leg Aluminum Leg Wheel Wheel Utility Small Storage Unit Device Subdweller Optics Storage Small Storage Unit Processor Targeting Computer Weapon Assault Rifle Energy Gun Medium Laser Ballistic Gun Assault Rifle Ballistic Cannon Battle Cannon Special Weapon Mining Laser Build | -11 -10 -10 -10 ------- Run | Yrd Mat Min Sub Slots Evolved . | . . . . Power . | . . . . Propulsion . | . . . . Utility . | . . . . Weapon . | . . . . Parts Attached 26 | 7 9 6 4 Power 5 | 1 1 2 1 Engine 4 | 1 1 1 1 Core 1 | . . 1 . Reactor . | . . . . Propulsion 7 | 3 2 2 . Treads 2 | . 2 . . Leg 3 | 1 . 2 . Wheel 2 | 2 . . . Hover . | . . . . Flight . | . . . . Utility 3 | 1 1 . 1 Device 1 | . . . 1 Storage 1 | 1 . . . Processor 1 | . 1 . . Hackware . | . . . . Protection . | . . . . Artifact . | . . . . Weapon 11 | 2 5 2 2 Energy Gun 3 | 1 2 . . Energy Cannon . | . . . . Ballistic Gun 6 | 1 3 2 . Ballistic Cannon 1 | . . . 1 Launcher . | . . . . Special Weapon 1 | . . . 1 Impact Weapon . | . . . . Slashing Weapon . | . . . . Piercing Weapon . | . . . . Special Melee Weapon . | . . . . Unidentified Prototypes . | . . . . Parts Lost 4 | . 1 2 1 Power 2 | . 1 . 1 Propulsion 2 | . . 2 . Utility . | . . . . Weapon . | . . . . Highest Loss Streak 2 | . 1 2 1 To Critical Strikes . | . . . . Average Backups 6 | 3 7 6 6 Power . | . . 1 . Propulsion 2 | 2 4 1 2 Utility 1 | . . 1 2 Weapon 2 | . 2 1 1 Tool/Special . | . . . . Unused Backups 6 | . 3 . 3 Power . | . . . . Propulsion 1 | . . . 1 Utility 3 | . 1 . 2 Weapon 2 | . 2 . . Tool/Special . | . . . . Average Slot Usage (%) 97 | . 93 99 100 Engine 11 | . 13 9 14 Core 2 | . . 4 . Treads 11 | . 23 6 . Leg 14 | . . 20 28 Wheel 1 | . 4 . . Device 1 | . . . 9 Storage 14 | . 14 14 14 Processor 10 | . 8 14 4 Energy Gun 4 | . 11 . . Ballistic Gun 23 | . 16 28 21 Peak Build Rating 11 | 6 8 10 11 Average Rating 7 | 4 6 8 8 On Entrance 5 | . 6 8 8 Avg Prop Armor Cover (%) . | . . . . Naked Turns . | . . . . Heaviest Build 17 | 14 14 14 17 Greatest Support 40 | 26 40 40 20 Greatest Overweight (x) . | . . . . Average Overweight (x) . | . . . . Largest Inventory Capacity 8 | 8 8 8 8 Average Capacity 7 | 6 8 8 8 Most Carried 8 | 6 8 8 8 Average Carried 7 | 3 7 7 7 Final Capacity 8 | 8 8 8 8 Final Carried 8 | 6 8 7 7 Class Distribution -------------------- 100% | Mutant Dominant Class ---------------- Mutant | -10/Materials Mutant | -10/Mines Mutant | -10/Subcaves Resources | -11 -10 -10 -10 ----------- Run | Yrd Mat Min Sub Matter Collected 667 | 225 210 222 10 Remotely . | . . . . Salvage Created 751 | . 375 376 . Parts 43 | . 18 25 . Haulers Intercepted . | . . . . Recyclers Shooed . | . . . . Parts Field Recycled . | . . . . Retrieved Matter . | . . . . Parts Self-Destructed . | . . . . Prevented . | . . . . Parts Restored . | . . . . Kills | -11 -10 -10 -10 ------- Run | Yrd Mat Min Sub Combat Hostiles Destroyed 22 | . 10 12 . Guns 22 | . 10 12 . Classes Destroyed 3 | . 2 1 . Tunneler 1 | . . 1 . Swarmer 9 | . 3 6 . Grunt 13 | . 7 6 . Best Kill Streak 6 | . 3 6 . Combat Bots Only 6 | . 3 6 . Max Kills in Single Turn 2 | . 1 2 . Gunslinging . | . . . . Exploded . | . . . . Melee . | . . . . Uniques/NPCs Destroyed . | . . . . Combat | -11 -10 -10 -10 -------- Run | Yrd Mat Min Sub Hostile Shots Fired 102 | . 48 37 17 Missed 17 | . 11 3 3 Hits 85 | . 37 34 14 Projectile 85 | . 37 34 14 Critical Strikes 3 | . 1 1 1 Damage Taken 1215 | . 467 411 337 Core 259 | . 65 84 110 Absorbed by Shields . | . . . . Core Remaining (%) 100 | 100 . . . Volleys Fired 70 | . 35 27 8 Largest 2 | . 2 2 2 Hottest 100 | . 100 40 100 Shots Fired 137 | . 70 54 13 Gun 129 | . 70 54 5 Cannon 5 | . . . 5 Launcher . | . . . . Special 3 | . . . 3 Kinetic 96 | . 32 54 10 Thermal 41 | . 38 . 3 Explosive . | . . . . Electromagnetic . | . . . . Robot Hit Streak 33 | . 10 33 9 Robot Miss Streak 2 | . 2 1 1 Penetration Max . | . . . . Secondary Targets . | . . . . Shots Hit Robots 99 | . 47 43 9 Core Hits 45 | . 21 22 2 Critical Kills . | . . . . Critical Parts Destroyed . | . . . . Critical Strikes 4 | . 4 . . Burn 4 | . 4 . . Melee Attacks . | . . . . Impact . | . . . . Slashing . | . . . . Piercing . | . . . . Sneak Attacks . | . . . . Combat Hostiles . | . . . . Follow-up Attacks . | . . . . Damage Inflicted 1232 | . 532 543 157 Guns 1125 | . 532 543 50 Cannons 107 | . . . 107 Explosions . | . . . . Melee . | . . . . Ramming . | . . . . Kinetic 944 | . 244 543 157 Thermal 288 | . 288 . . Explosive . | . . . . Electromagnetic . | . . . . Impact . | . . . . Slashing . | . . . . Piercing . | . . . . Highest Corruption . | . . . . Average Corruption . | . . . . Corruption Purged . | . . . . Corruption Blocked . | . . . . Overload Shots . | . . . . Overflow Damage . | . . . . Projectiles . | . . . . Explosions . | . . . . Melee . | . . . . Knockbacks 2 | . . . 2 Impact . | . . . . Kinetic 2 | . . . 2 Secondary . | . . . . Self-Inflicted Damage . | . . . . Shots . | . . . . Rammed . | . . . . Targets Rammed . | . . . . Kicked . | . . . . Crushed . | . . . . Highest Temperature 300 | . 300 20 . Average Temperature 93 | . 109 4 . Received Heat Transfer 513 | . 267 198 48 Siege Activations . | . . . . Martial Activations . | . . . . Shielding Activations . | . . . . Robots Disrupted . | . . . . Combat Hostiles . | . . . . Robots Corrupted . | . . . . Combat Hostiles . | . . . . Parts Fried . | . . . . Impact Corruptions . | . . . . Robots Melted . | . . . . Combat Hostiles . | . . . . Parts Melted . | . . . . Heat Transferred 1147 | . 1147 . . Parts Sabotaged . | . . . . Parts Stolen . | . . . . Parts Stripped . | . . . . Power Chain Reactions . | . . . . Alert | -11 -10 -10 -10 ------- Run | Yrd Mat Min Sub Maximum Alert Level . | . . . . Low Security (%) 100 | 100 100 100 . Level 1 . | . . . . Level 2 . | . . . . Level 3 . | . . . . Level 4 . | . . . . Level 5 . | . . . . High Security . | . . . . Max Security . | . . . . Peak Influence 147 | . 137 147 . Initial 17 | . . 17 . Average 49 | . 73 36 . Influence Increases 647 | . 337 310 . Destroy 0b10 Robot/C 440 | . 200 240 . Destroy 0b10 Robot/NC 5 | . . 5 . Destroy Leader 110 | . 60 50 . Successful Hack 15 | . 15 . . Disable Machine 15 | . . 15 . Destroy Structure 2 | . 2 . . Lose Combat Pursuer 60 | . 60 . . Influence Decreases 647 | . 291 356 . Entered New Map 29 | . . 29 . Time Decay 598 | . 281 317 . Lost Part 20 | . 10 10 . Squads Dispatched 2 | . 2 . . Investigation 1 | . 1 . . Extermination . | . . . . Reinforcement 1 | . 1 . . Assault . | . . . . Garrison . | . . . . Intercept . | . . . . Searches Triggered . | . . . . Construction Impeded . | . . . . Haulers Reinforced . | . . . . Active Scanning Responses . | . . . . Cargo Convoy Interrupts . | . . . . Stealth | -11 -10 -10 -10 --------- Run | Yrd Mat Min Sub Distress Signals 3 | . 3 . . Communications Jammed . | . . . . Distress Signals . | . . . . Times Spotted 33 | . 19 12 2 Peak Tracking Total 5 | . 5 3 2 Tactical Retreats 4 | . 4 . . Traps | -11 -10 -10 -10 ------- Run | Yrd Mat Min Sub Traps Triggered 1 | . . . 1 Indirectly . | . . . . Trap Hack Attempts . | . . . . Triggered . | . . . . Disarmed . | . . . . Reprogrammed . | . . . . Reused . | . . . . Traps Extracted . | . . . . Installed . | . . . . Triggered . | . . . . Machines | -11 -10 -10 -10 ---------- Run | Yrd Mat Min Sub Machines Disabled 1 | . . 1 . Max in Single Turn 1 | . . 1 . Machines Repaired . | . . . . Machines Dismantled . | . . . . Machines Sabotaged . | . . . . Overloaded Fab Kills . | . . . . Hacking | -11 -10 -10 -10 --------- Run | Yrd Mat Min Sub Machines Accessed 6 | . 6 . . Terminals 4 | . 4 . . Fabricators . | . . . . Repair Stations . | . . . . Recycling Units 2 | . 2 . . Scanalyzers . | . . . . Garrison Access . | . . . . Total Hacks 22 | . 22 . . Successful 15 | . 15 . . Failed 7 | . 7 . . Catastrophic . | . . . . Database Lockouts . | . . . . Manual . | . . . . Terminals 18 | . 18 . . Fabricators . | . . . . Repair Stations . | . . . . Recycling Units 4 | . 4 . . Scanalyzers . | . . . . Garrison Access . | . . . . Terminal Hacks 12 | . 12 . . Record 4 | . 4 . . Alert Level 2 | . 2 . . Locate Traps 3 | . 3 . . Dispatch Records 1 | . 1 . . Hauler Manifests 1 | . 1 . . Zone Layout 1 | . 1 . . Fabricator Hacks . | . . . . Repair Station Hacks . | . . . . Recycling Unit Hacks 3 | . 3 . . Report Inventory 2 | . 2 . . Retrieve Components 1 | . 1 . . Scanalyzer . | . . . . Garrison Access Hacks . | . . . . Unauthorized Hacks . | . . . . Terminals . | . . . . Fabricators . | . . . . Repair Stations . | . . . . Recycling Units . | . . . . Scanalyzers . | . . . . Garrison Access . | . . . . Data Cores Recovered . | . . . . Used . | . . . . Hacking Detections 2 | . 2 . . Full Trace Events 1 | . 1 . . Feedback Events . | . . . . Feedback Blocked . | . . . . Robot Schematics Acquired . | . . . . Robots Built . | . . . . Authchips . | . . . . Time . | . . . . Total Robot Build Rating . | . . . . Part Schematics Acquired . | . . . . Parts Built . | . . . . Authchips . | . . . . Time . | . . . . Total Part Build Rating . | . . . . Part Studies Acquired . | . . . . Parts Repaired . | . . . . Time . | . . . . Parts Recycled . | . . . . Recycled Matter . | . . . . Retrieved Matter . | . . . . Retrieved Components 6 | . 6 . . Parts Scanalyzed . | . . . . Part Schematics Acquired . | . . . . Parts Damaged . | . . . . Bothacking | -11 -10 -10 -10 ------------ Run | Yrd Mat Min Sub Used RIF Installer . | . . . . Robots Hacked . | . . . . Non-combat . | . . . . Combat . | . . . . Robot Hacks Applied . | . . . . Relay Couplers Released . | . . . . Fabnet Peak Effective % . | . . . . Robots Rewired . | . . . . Allies Hacked . | . . . . Hacks Repelled . | . . . . Allies | -11 -10 -10 -10 -------- Run | Yrd Mat Min Sub Total Allies . | . . . . Largest Group . | . . . . Highest-Rated Group . | . . . . Highest-Rated Ally . | . . . . Total Orders . | . . . . Ally Attacks . | . . . . Total Damage . | . . . . Kills . | . . . . Allies Corrupted . | . . . . Allies Melted . | . . . . Intel | -11 -10 -10 -10 ------- Run | Yrd Mat Min Sub Active Infowar (turns) 154 | . . . 154 Optics 154 | . . . 154 Robot Analysis Total . | . . . . Derelict Logs Recovered 3 | . . 2 1 Drone Launches . | . . . . Drone Recoveries . | . . . . Exploration | -11 -10 -10 -10 ------------- Run | Yrd Mat Min Sub Turns Passed 1950 | 77 670 974 229 Spaces Moved 1246 | 62 362 665 157 Core 7 | 7 . . . Treads 390 | . 277 113 . Legs 720 | 11 . 552 157 Wheels 129 | 44 85 . . Hover . | . . . . Flight . | . . . . Fastest Speed 50 | 50 90 120 120 Average Speed 129 | 90 143 126 120 Slowest Speed 160 | 120 160 160 120 Overloaded Moves . | . . . . Propulsion Burnouts . | . . . . Robots Hopped . | . . . . Potential Cave-ins . | . . . . Cave-ins Triggered . | . . . . Exploration Rate (%) 46 | 5 64 99 16 Regions Visited 3 Branch Regions 2 Pre-discovered Areas 1 | . . 1 . Known Exits Taken . | . . . . Unknown Exits Taken 3 | 1 1 1 . Scrap Searched 5 | . . 2 3 Spaces Dug . | . . . . Terrain Destroyed . | . . . . Melee . | . . . . Projectile . | . . . . AOE . | . . . . Terrain Rammed . | . . . . Walls Destroyed . | . . . . Machines Disabled . | . . . . Actions | -11 -10 -10 -10 --------- Run | Yrd Mat Min Sub Total 1447 | 82 446 742 177 Wait 56 | . 20 34 2 Move 1243 | 61 361 664 157 Hop . | . . . . Pick Up 33 | 13 12 5 3 Fast Attach . | . . . . Attach 12 | 6 2 2 2 Detach . | . . . . Swap 17 | 1 8 5 3 Drop 16 | 1 8 5 2 Fire 70 | . 35 27 8 Melee . | . . . . Ram . | . . . . Kick . | . . . . Crush . | . . . . Escape Stasis . | . . . . Rewire . | . . . . Trap . | . . . . Miscellaneous . | . . . . Route ------- -11/Scrapyard -10/Materials (discovered 3 exits: [*Mat] / [*Min x2]) -10/Mines (discovered 4 exits: [*Mat x2] / [*Exi] / [*Sub]) -10/Subcaves History --------- Turn | Location | Event 6 | -11/Scrapyard | Discovered new exit (range 16) 78 | -11/Scrapyard | Entered Materials 309 | -10/Materials | Build established: Mutant 389 | -10/Materials | Discovered new exit (range 6) 491 | -10/Materials | Discovered new exit (range 13) 578 | -10/Materials | Derelicts attacked the area 582 | -10/Materials | Discovered new exit (range 6) 748 | -10/Materials | Entered Mines 756 | -10/Mines | Discovered new exit (range 6) 895 | -10/Mines | Learned Materials interactive machine intel 909 | -10/Mines | Learned Materials trap positions 927 | -10/Mines | Discovered new exit (range 6) 982 | -10/Mines | Core integrity fell below 50% 1011 | -10/Mines | Found a Scrap Suit stashed away for nefarious purposes 1013 | -10/Mines | Found Scrap Suit 1164 | -10/Mines | A weapon hastily lodged in a ceiling crevice suddenly fell to the ground 1182 | -10/Mines | Deemed a non-threat by the Exiles lab entrance 1183 | -10/Mines | Discovered new exit (range 5) 1266 | -10/Mines | Discovered new exit (range 5) 1309 | -10/Mines | Learned location of Storage (-8) 1722 | -10/Mines | Entered Subcaves 1725 | -10/Subcaves | Learned 4 Materials zone layouts 1950 | -10/Subcaves | Core integrity fell below 20% 1951 | -10/Subcaves | Destroyed by WY-3W7(R) with Subdweller Laser Last Messages --------------- 01791_ Searching scrap... 01791_ Found Battle Cannon. 01791_ Found 49 Matter. 01791_ Triggered Piercing Trap. 01791_ Spikes shoot up from the floor. 01791_ Critical hit (Impale). 01795_ Acquired Sub. Optics. 01796_ Discarded Targeting Computer. 01797_ Subatomizers dissect the Battle Cannon. 01800_ Acquired Battle Cannon. 01801_ Acquired 10 matter. 01813_ Searching scrap... 01813_ Found Sub. Power Source. 01813_ Found 52 Matter. 01816_ Dropped Lgt. Nuclear Core. 01816_ Acquired Sub. Power Source. 01841_ 4R-WBY(u) tweaks Twisted Machinery. 01930_ VI-04B(R) knocked back. 01935_ Ion Engine destroyed. 01945_ WY-3W7(R) knocked back. Map ----- +----------------------------------------------------+ | ???????????##"" ##?????????????????????????????? | | ???????????#"" ##??##??????????????????????????? | | ???????????### ####"##?????????????????????????? | | ?????????????# """"#?????????????????????????? | | ?????????????# " "#?????????????????????????? | | ?????????????#" ### ##????????????????????????? | | ????????????##" #?# #????????????????????????? | | ????????????? ### ##???????????????????????? | | ????????????## # ##??????????????????????? | | ????????????? # #??????????????????????? | | ????????????## # ##??????????????????????? | | ???????????## ## ##??????????????????????? | | ???????????# ## ##?????????????????????? | | ???????????# ## #?????????????????????? | | ????????????# ###?????????????????????? | | ????????????## ##???????????????????????? | | ?????????????## #????????????????????????? | | ??????????????# ## ##????????????????????????? | | ?????????????## #?###?????????????????????????? | | ????????????## ####??????????????????????????? | | ????????????# ####???????????????????????? | | ????????????## ##??????????????????????? | | ?????????????##### #??????????????????????? | | ?????????????????# % #??????????????????????? | | ????????????????## R%#??????????????????????? | | ?????????????####""" R @#??????????????????????? | | ????????????## """% ###??????????????????????? | | ????????????# % " ##????????????????????????? | | ????????????# ##?????????????????????????? | | ????????????## ##??????????????????????????? | | ?????????????## ### " ####?????????????????? | | ??????????????### "" ????????????? | | ????????????????# ## ????????????? | | ???????????????# ""##????????????????????? | | ??????????????# ## "" ###?????????????????????? | | ??????????????####?#######???????????????????????? | | ?????????????????????????????????????????????????? | | ?????????????????????????????????????????????????? | | ?????????????????????????????????????????????????? | | ?????????????????????????????????????????????????? | | ?????????????????????????????????????????????????? | | ?????????????????????????????????????????????????? | | ?????????????????????????????????????????????????? | | ?????????????????????????????????????????????????? | | ?????????????????????????????????????????????????? | | ?????????????????????????????????????????????????? | | ?????????????????????????????????????????????????? | | ?????????????????????????????????????????????????? | | ?????????????????????????????????????????????????? | | ?????????????????????????????????????????????????? | +----------------------------------------------------+ Best States ------------- Heat Dissipation 25 Energy Generation 15 Energy Capacity 250 Matter Stores 300 Matter Capacity 300 Sight Range 21 Terrain Scan Density 10 Evasion (%) 55 Targeting Accuracy 5 Recoil Reduction 2 Item Schematics ----------------- None Robot Schematics ------------------ None Fabricated ------------ Nothing Repaired ---------- Nothing Studied --------- None Alien Tech Used ----------------- None Achievements -------------- None Challenges ------------ None Game ------ Seed DispersalAlphaFlail Manual? 0 Play Time 00:14:55 Cumulative 106.2 hours Start 2025.10.24 @ 01:26:02 End 2025.10.24 @ 01:38:57 Sessions 1 Manual Loads 0 Difficulty Rogue Special Mode None Game No. 131 Rogue 131 Adventurer 0 Explorer 0 Win Type - Total 0 Types 0/0/0/0/0/0/0/0/0/0 Lore% 47 Gallery% 47 Achievement% 27 Wizard Run 0 Options --------- Layout 2 ASCII 0 Keyboard 0 Movement Numpad Keybinds 0 Fullscreen 1 Font 24/Smallcaps Map View 50x44 Zoom Use 0% Tactical HUD 1 Map Filters NONE Filters NONE Steam 1 RUN: 1a885ea2-e92c-45bf-9e49-052fc3546c86